[Event "Titled Tuesday Blitz August 08 Early 2023"]
[White "Bauman_Guy"]
[Black "Domingo Nunez, Ruben"]
[BlackFideId "22245570"]
[WhiteElo "2799"]
[BlackElo "2628"]
[Result "1-0"]
[Round "7"]
[TimeControl "180+1"]
[Date "2023.08.08"]
[WhiteClock "0:01:19"]
[BlackClock "0:00:05"]
[Board "41"]

1. e4 {[%clk 0:03:00]}  g6 {[%clk 0:02:59]} 2. d4 {[%clk 0:03:01]}  Bg7 {[%clk 0:03:00]} 3. Nc3 {[%clk 0:03:01]}  c6 {[%clk 0:03:00]} 4. Bc4 {[%clk 0:03:02]}  d5 {[%clk 0:03:01]} 5. exd5 {[%clk 0:03:02]}  b5 {[%clk 0:03:02]} 6. Bb3 {[%clk 0:03:03]}  b4 {[%clk 0:03:02]} 7. Nce2 {[%clk 0:03:03]}  cxd5 {[%clk 0:03:03]} 8. a3 {[%clk 0:03:04]}  bxa3 {[%clk 0:03:03]} 9. Rxa3 {[%clk 0:03:05]}  Nf6 {[%clk 0:03:03]} 10. Nf3 {[%clk 0:03:05]}  O-O {[%clk 0:03:03]} 11. O-O {[%clk 0:03:05]}  Bg4 {[%clk 0:03:03]} 12. Ne5 {[%clk 0:03:05]}  Bxe2 {[%clk 0:03:03]} 13. Qxe2 {[%clk 0:03:06]}  e6 {[%clk 0:03:04]} 14. c3 {[%clk 0:03:06]}  Qb6 {[%clk 0:03:04]} 15. Nd3 {[%clk 0:03:04]}  a5 {[%clk 0:03:01]} 16. Bf4 {[%clk 0:03:04]}  Nc6 {[%clk 0:02:59]} 17. Rfa1 {[%clk 0:03:04]}  Nd7 {[%clk 0:02:54]} 18. Ba4 {[%clk 0:03:03]}  Rfc8 {[%clk 0:02:45]} 19. Bxc6 {[%clk 0:03:01]}  Rxc6 {[%clk 0:02:46]} 20. b4 {[%clk 0:03:01]}  Bf8 {[%clk 0:02:01]} 21. Nc5 {[%clk 0:03:00]}  Qd8 {[%clk 0:01:20]} 22. Rxa5 {[%clk 0:02:53]}  Rxa5 {[%clk 0:01:17]} 23. Rxa5 {[%clk 0:02:53]}  e5 {[%clk 0:00:44]} 24. Qb5 {[%clk 0:02:22]}  Qf6 {[%clk 0:00:22]} 25. Be3 {[%clk 0:02:06]}  Qf5 {[%clk 0:00:11]} 26. Nxd7 {[%clk 0:01:46]}  Rxc3 {[%clk 0:00:09]} 27. Nxe5 {[%clk 0:01:35]}  Qe4 {[%clk 0:00:04]} 28. h3 {[%clk 0:01:30]}  Rxe3 {[%clk 0:00:03]} 29. fxe3 {[%clk 0:01:28]}  Qxe3+ {[%clk 0:00:04]} 30. Kf1 {[%clk 0:01:20]}  Qf4+ {[%clk 0:00:04]} 31. Nf3 {[%clk 0:01:19]}  Qc1+ {[%clk 0:00:04]} 32. Kf2 {[%clk 0:01:20]}  Qb2+ {[%clk 0:00:04]} 33. Qe2 {[%clk 0:01:20]}  Qxb4 {[%clk 0:00:04]} 34. Rxd5 {[%clk 0:01:20]}  Qb7 {[%clk 0:00:04]} 35. Rd8 {[%clk 0:01:19]}  Kg7 {[%clk 0:00:04]} 36. Qe5+ {[%clk 0:01:19]}  f6 {[%clk 0:00:05]} 37. Qd5 {[%clk 0:01:19]}  Qxd5 {[%clk 0:00:05]} 38. Rxd5 {[%clk 0:01:19]} 1-0


[Site "https://www.chess.com"]

[Event "Titled Tuesday Blitz August 08 Early 2023"]
[White "Goldin, Alexander"]
[Black "Mayank Chakraborty"]
[WhiteFideId "2019540"]
[BlackFideId "25659766"]
[WhiteElo "2616"]
[BlackElo "2798"]
[Result "0-1"]
[Round "7"]
[TimeControl "180+1"]
[Date "2023.08.08"]
[WhiteClock "0:00:06"]
[BlackClock "0:00:34"]
[Board "42"]

1. d4 {[%clk 0:03:00]}  Nf6 {[%clk 0:02:59]} 2. Nf3 {[%clk 0:03:00]}  e6 {[%clk 0:03:00]} 3. e3 {[%clk 0:02:59]}  d5 {[%clk 0:03:00]} 4. b3 {[%clk 0:02:59]}  c5 {[%clk 0:03:00]} 5. Bb2 {[%clk 0:02:58]}  Nc6 {[%clk 0:03:01]} 6. a3 {[%clk 0:02:57]}  b6 {[%clk 0:03:00]} 7. Bd3 {[%clk 0:02:52]}  Bb7 {[%clk 0:02:59]} 8. O-O {[%clk 0:02:51]}  Bd6 {[%clk 0:03:00]} 9. c4 {[%clk 0:02:51]}  O-O {[%clk 0:02:59]} 10. cxd5 {[%clk 0:02:49]}  exd5 {[%clk 0:02:59]} 11. Be2 {[%clk 0:02:34]}  Rc8 {[%clk 0:02:56]} 12. Nc3 {[%clk 0:02:34]}  Re8 {[%clk 0:02:56]} 13. dxc5 {[%clk 0:02:26]}  bxc5 {[%clk 0:02:54]} 14. Rc1 {[%clk 0:02:12]}  Ne5 {[%clk 0:02:42]} 15. Nb5 {[%clk 0:02:03]}  Nxf3+ {[%clk 0:02:38]} 16. Bxf3 {[%clk 0:02:03]}  Bb8 {[%clk 0:02:39]} 17. Qd3 {[%clk 0:01:43]}  a6 {[%clk 0:02:24]} 18. Nc3 {[%clk 0:01:43]}  Qd6 {[%clk 0:02:24]} 19. g3 {[%clk 0:01:43]}  Rcd8 {[%clk 0:02:10]} 20. Na4 {[%clk 0:01:32]}  Ba7 {[%clk 0:02:10]} 21. Bg2 {[%clk 0:01:23]}  Bc6 {[%clk 0:01:56]} 22. Bxf6 {[%clk 0:01:20]}  Bb5 {[%clk 0:01:38]} 23. Qf5 {[%clk 0:01:02]}  Qxf6 {[%clk 0:01:33]} 24. Qxf6 {[%clk 0:01:00]}  gxf6 {[%clk 0:01:34]} 25. Rfd1 {[%clk 0:00:53]}  d4 {[%clk 0:01:31]} 26. exd4 {[%clk 0:00:48]}  cxd4 {[%clk 0:01:27]} 27. Nc5 {[%clk 0:00:43]}  d3 {[%clk 0:01:24]} 28. Ne4 {[%clk 0:00:18]}  Re6 {[%clk 0:00:51]} 29. a4 {[%clk 0:00:18]}  Bc6 {[%clk 0:00:51]} 30. Nd2 {[%clk 0:00:14]}  Bxg2 {[%clk 0:00:47]} 31. Kxg2 {[%clk 0:00:14]}  Re2 {[%clk 0:00:47]} 32. Nf1 {[%clk 0:00:10]}  Rxf2+ {[%clk 0:00:47]} 33. Kh3 {[%clk 0:00:11]}  f5 {[%clk 0:00:35]} 34. Nd2 {[%clk 0:00:10]}  Rd6 {[%clk 0:00:33]} 35. g4 {[%clk 0:00:05]}  Rh6+ {[%clk 0:00:33]} 36. Kg3 {[%clk 0:00:06]}  f4# {[%clk 0:00:34]} 0-1


[Site "https://www.chess.com"]

[Event "Titled Tuesday Blitz August 08 Early 2023"]
[White "Toropov, Pavel"]
[Black "Adewumi, Tanitoluwa"]
[WhiteFideId "24129178"]
[BlackFideId "30966396"]
[WhiteElo "2585"]
[BlackElo "2747"]
[Result "0-1"]
[Round "7"]
[TimeControl "180+1"]
[Date "2023.08.08"]
[WhiteClock "0:00:05"]
[BlackClock "0:00:07"]
[Board "46"]

1. e4 {[%clk 0:03:00]}  c5 {[%clk 0:02:50]} 2. Nf3 {[%clk 0:03:00]}  e6 {[%clk 0:02:50]} 3. d4 {[%clk 0:02:59]}  cxd4 {[%clk 0:02:51]} 4. Nxd4 {[%clk 0:02:59]}  Nc6 {[%clk 0:02:51]} 5. Nc3 {[%clk 0:02:59]}  Qc7 {[%clk 0:02:52]} 6. Be3 {[%clk 0:02:59]}  a6 {[%clk 0:02:51]} 7. Qf3 {[%clk 0:02:59]}  Bd6 {[%clk 0:02:49]} 8. O-O-O {[%clk 0:02:45]}  Be5 {[%clk 0:02:49]} 9. Nxc6 {[%clk 0:02:45]}  bxc6 {[%clk 0:02:48]} 10. Bd4 {[%clk 0:02:42]}  Nf6 {[%clk 0:02:47]} 11. Bxe5 {[%clk 0:02:38]}  Qxe5 {[%clk 0:02:47]} 12. Qg3 {[%clk 0:02:28]}  Qxg3 {[%clk 0:02:43]} 13. hxg3 {[%clk 0:02:29]}  d5 {[%clk 0:02:41]} 14. Bd3 {[%clk 0:02:29]}  h6 {[%clk 0:02:33]} 15. f3 {[%clk 0:02:28]}  Ke7 {[%clk 0:02:29]} 16. g4 {[%clk 0:02:28]}  Rd8 {[%clk 0:02:19]} 17. Rde1 {[%clk 0:01:43]}  a5 {[%clk 0:02:10]} 18. exd5 {[%clk 0:01:37]}  cxd5 {[%clk 0:02:09]} 19. Nb5 {[%clk 0:01:37]}  Ba6 {[%clk 0:01:22]} 20. Nd4 {[%clk 0:01:36]}  Kd7 {[%clk 0:00:45]} 21. Bxa6 {[%clk 0:01:06]}  Rxa6 {[%clk 0:00:45]} 22. a4 {[%clk 0:01:06]}  Rc8 {[%clk 0:00:37]} 23. Re3 {[%clk 0:00:54]}  Rc4 {[%clk 0:00:35]} 24. c3 {[%clk 0:00:18]}  Rxa4 {[%clk 0:00:26]} 25. Kc2 {[%clk 0:00:19]}  Rc4 {[%clk 0:00:24]} 26. Ra1 {[%clk 0:00:18]}  a4 {[%clk 0:00:20]} 27. Ree1 {[%clk 0:00:14]}  Ne8 {[%clk 0:00:12]} 28. Kd3 {[%clk 0:00:10]}  Nd6 {[%clk 0:00:12]} 29. b3 {[%clk 0:00:09]}  Rc5 {[%clk 0:00:08]} 30. Rxa4 {[%clk 0:00:08]}  Rxa4 {[%clk 0:00:08]} 31. bxa4 {[%clk 0:00:09]}  Ra5 {[%clk 0:00:08]} 32. Ra1 {[%clk 0:00:08]}  Nc4 {[%clk 0:00:08]} 33. Nb3 {[%clk 0:00:08]}  Ra7 {[%clk 0:00:04]} 34. a5 {[%clk 0:00:08]}  Kc6 {[%clk 0:00:04]} 35. Nd4+ {[%clk 0:00:07]}  Kc5 {[%clk 0:00:04]} 36. Nb3+ {[%clk 0:00:07]}  Kb5 {[%clk 0:00:04]} 37. Nd4+ {[%clk 0:00:08]}  Kc5 {[%clk 0:00:04]} 38. Nb3+ {[%clk 0:00:08]}  Kd6 {[%clk 0:00:05]} 39. Kd4 {[%clk 0:00:08]}  e5+ {[%clk 0:00:03]} 40. Kd3 {[%clk 0:00:09]}  Ra6 {[%clk 0:00:04]} 41. Kc2 {[%clk 0:00:06]}  f6 {[%clk 0:00:04]} 42. Ra4 {[%clk 0:00:06]}  Kc6 {[%clk 0:00:05]} 43. Ra1 {[%clk 0:00:04]}  Kb5 {[%clk 0:00:03]} 44. Rb1 {[%clk 0:00:03]}  Kc6 {[%clk 0:00:03]} 45. Ra1 {[%clk 0:00:04]}  g6 {[%clk 0:00:04]} 46. Ra4 {[%clk 0:00:04]}  Kb5 {[%clk 0:00:04]} 47. Rb4+ {[%clk 0:00:04]}  Kc6 {[%clk 0:00:04]} 48. Ra4 {[%clk 0:00:05]}  h5 {[%clk 0:00:03]} 49. gxh5 {[%clk 0:00:03]}  gxh5 {[%clk 0:00:04]} 50. Ra1 {[%clk 0:00:03]}  Kb5 {[%clk 0:00:04]} 51. Rh1 {[%clk 0:00:03]}  Nxa5 {[%clk 0:00:04]} 52. Rxh5 {[%clk 0:00:03]}  Nc4 {[%clk 0:00:03]} 53. Kb1 {[%clk 0:00:03]}  Ra3 {[%clk 0:00:03]} 54. Kc2 {[%clk 0:00:04]}  Ra2+ {[%clk 0:00:03]} 55. Kc1 {[%clk 0:00:05]}  Rxg2 {[%clk 0:00:04]} 56. Rh8 {[%clk 0:00:05]}  Rf2 {[%clk 0:00:04]} 57. Rb8+ {[%clk 0:00:05]}  Kc6 {[%clk 0:00:04]} 58. Rc8+ {[%clk 0:00:04]}  Kd6 {[%clk 0:00:05]} 59. Ra8 {[%clk 0:00:03]}  Rxf3 {[%clk 0:00:05]} 60. Ra6+ {[%clk 0:00:04]}  Ke7 {[%clk 0:00:05]} 61. Nc5 {[%clk 0:00:05]}  Rxc3+ {[%clk 0:00:05]} 62. Kd1 {[%clk 0:00:05]}  Ne3+ {[%clk 0:00:05]} 63. Ke2 {[%clk 0:00:05]}  Rxc5 {[%clk 0:00:05]} 64. Kxe3 {[%clk 0:00:05]}  Rc3+ {[%clk 0:00:06]} 65. Kd2 {[%clk 0:00:05]}  d4 {[%clk 0:00:07]} 0-1


[Site "https://www.chess.com"]

[Event "Titled Tuesday Blitz August 08 Early 2023"]
[White "Ismagilov, Damir"]
[Black "Prohaszka, Peter"]
[WhiteFideId "34199982"]
[BlackFideId "726265"]
[WhiteElo "2551"]
[BlackElo "2733"]
[Result "1-0"]
[Round "7"]
[TimeControl "180+1"]
[Date "2023.08.08"]
[WhiteClock "0:00:14"]
[BlackClock "0:00:02"]
[Board "53"]

1. d4 {[%clk 0:03:00]}  d5 {[%clk 0:02:50]} 2. c4 {[%clk 0:03:01]}  e6 {[%clk 0:02:51]} 3. Nc3 {[%clk 0:03:01]}  Nf6 {[%clk 0:02:52]} 4. cxd5 {[%clk 0:03:02]}  exd5 {[%clk 0:02:53]} 5. Bg5 {[%clk 0:03:02]}  c6 {[%clk 0:02:53]} 6. e3 {[%clk 0:03:02]}  h6 {[%clk 0:02:52]} 7. Bh4 {[%clk 0:03:02]}  Be7 {[%clk 0:02:53]} 8. Bd3 {[%clk 0:03:01]}  O-O {[%clk 0:02:53]} 9. Qc2 {[%clk 0:03:01]}  Nbd7 {[%clk 0:02:53]} 10. Nf3 {[%clk 0:03:01]}  Re8 {[%clk 0:02:50]} 11. O-O {[%clk 0:03:00]}  Ne4 {[%clk 0:02:50]} 12. Bxe4 {[%clk 0:02:56]}  Bxh4 {[%clk 0:02:37]} 13. Bh7+ {[%clk 0:02:56]}  Kh8 {[%clk 0:02:36]} 14. Nxh4 {[%clk 0:02:57]}  Qxh4 {[%clk 0:02:36]} 15. Bd3 {[%clk 0:02:58]}  Nf6 {[%clk 0:02:27]} 16. b4 {[%clk 0:02:57]}  a6 {[%clk 0:01:56]} 17. a4 {[%clk 0:02:55]}  Ng4 {[%clk 0:01:33]} 18. h3 {[%clk 0:02:52]}  Nf6 {[%clk 0:01:33]} 19. Ne2 {[%clk 0:02:27]}  Bxh3 {[%clk 0:01:08]} 20. gxh3 {[%clk 0:02:28]}  Qxh3 {[%clk 0:01:08]} 21. Bf5 {[%clk 0:01:58]}  Qh4 {[%clk 0:00:55]} 22. Kg2 {[%clk 0:01:58]}  g6 {[%clk 0:00:53]} 23. Bh3 {[%clk 0:01:58]}  Re4 {[%clk 0:00:40]} 24. Ng3 {[%clk 0:01:52]}  Re7 {[%clk 0:00:25]} 25. Rh1 {[%clk 0:01:51]}  Ne4 {[%clk 0:00:17]} 26. Bf5 {[%clk 0:01:44]}  Qg5 {[%clk 0:00:17]} 27. Bxe4 {[%clk 0:01:34]}  Rxe4 {[%clk 0:00:17]} 28. b5 {[%clk 0:01:26]}  Rae8 {[%clk 0:00:11]} 29. bxc6 {[%clk 0:01:18]}  bxc6 {[%clk 0:00:11]} 30. Qxc6 {[%clk 0:01:07]}  h5 {[%clk 0:00:12]} 31. Qd7 {[%clk 0:00:39]}  Kg7 {[%clk 0:00:10]} 32. Kf1 {[%clk 0:00:33]}  R4e7 {[%clk 0:00:07]} 33. Qd6 {[%clk 0:00:27]}  h4 {[%clk 0:00:03]} 34. Ne2 {[%clk 0:00:24]}  Re4 {[%clk 0:00:03]} 35. Qh2 {[%clk 0:00:21]}  Rg4 {[%clk 0:00:03]} 36. Rg1 {[%clk 0:00:20]}  Ree4 {[%clk 0:00:02]} 37. Rc1 {[%clk 0:00:18]}  h3 {[%clk 0:00:02]} 38. Ng3 {[%clk 0:00:17]}  Re6 {[%clk 0:00:02]} 39. Qxh3 {[%clk 0:00:17]}  f5 {[%clk 0:00:02]} 40. Rh1 {[%clk 0:00:15]}  f4 {[%clk 0:00:01]} 41. Qh8+ {[%clk 0:00:14]}  Kf7 {[%clk 0:00:02]} 42. Rh7# {[%clk 0:00:14]} 1-0


[Site "https://www.chess.com"]

[Event "Titled Tuesday Blitz August 08 Early 2023"]
[White "Shyam, Sundar M."]
[Black "Burmakin, Vladimir"]
[WhiteFideId "5019141"]
[BlackFideId "4105109"]
[WhiteElo "2725"]
[BlackElo "2542"]
[Result "1-0"]
[Round "7"]
[TimeControl "180+1"]
[Date "2023.08.08"]
[WhiteClock "0:00:33"]
[BlackClock "0:00:29"]
[Board "54"]

1. e4 {[%clk 0:03:00]}  c6 {[%clk 0:03:00]} 2. Nc3 {[%clk 0:03:00]}  d5 {[%clk 0:03:00]} 3. Nf3 {[%clk 0:03:00]}  dxe4 {[%clk 0:03:00]} 4. Nxe4 {[%clk 0:03:01]}  Nf6 {[%clk 0:03:00]} 5. Qe2 {[%clk 0:03:01]}  Nxe4 {[%clk 0:03:00]} 6. Qxe4 {[%clk 0:03:01]}  Be6 {[%clk 0:03:00]} 7. c4 {[%clk 0:02:54]}  Nd7 {[%clk 0:02:59]} 8. d4 {[%clk 0:02:54]}  Nf6 {[%clk 0:02:59]} 9. Qc2 {[%clk 0:02:51]}  Bg4 {[%clk 0:02:57]} 10. Be3 {[%clk 0:02:43]}  Bxf3 {[%clk 0:02:55]} 11. gxf3 {[%clk 0:02:44]}  e6 {[%clk 0:02:55]} 12. O-O-O {[%clk 0:02:44]}  Qa5 {[%clk 0:02:45]} 13. Kb1 {[%clk 0:02:43]}  Bd6 {[%clk 0:02:41]} 14. Rg1 {[%clk 0:02:43]}  g6 {[%clk 0:02:40]} 15. Rg5 {[%clk 0:02:44]}  Qc7 {[%clk 0:02:36]} 16. h4 {[%clk 0:02:44]}  Bf4 {[%clk 0:02:31]} 17. Rg1 {[%clk 0:02:29]}  O-O-O {[%clk 0:02:30]} 18. Qc1 {[%clk 0:02:27]}  Nh5 {[%clk 0:02:29]} 19. Bh3 {[%clk 0:02:25]}  f5 {[%clk 0:02:25]} 20. Rge1 {[%clk 0:02:22]}  Rhe8 {[%clk 0:02:24]} 21. Bf1 {[%clk 0:02:22]}  Kb8 {[%clk 0:02:22]} 22. c5 {[%clk 0:02:22]}  e5 {[%clk 0:02:11]} 23. dxe5 {[%clk 0:02:10]}  Bxe5 {[%clk 0:02:04]} 24. Bc4 {[%clk 0:01:56]}  f4 {[%clk 0:01:53]} 25. Bd2 {[%clk 0:01:53]}  Bd4 {[%clk 0:01:52]} 26. Rxe8 {[%clk 0:01:48]}  Rxe8 {[%clk 0:01:51]} 27. Bxf4 {[%clk 0:01:44]}  Nxf4 {[%clk 0:01:20]} 28. Rxd4 {[%clk 0:01:43]}  Ne2 {[%clk 0:01:20]} 29. Qe1 {[%clk 0:01:30]}  Qg7 {[%clk 0:00:49]} 30. Rd1 {[%clk 0:00:34]}  Qe7 {[%clk 0:00:29]} 31. Bxe2 {[%clk 0:00:33]} 1-0


[Site "https://www.chess.com"]

[Event "Titled Tuesday Blitz August 08 Early 2023"]
[White "Droin, Augustin"]
[Black "Timmermans, Mark"]
[WhiteFideId "45105987"]
[BlackFideId "1026399"]
[WhiteElo "2539"]
[BlackElo "2722"]
[Result "0-1"]
[Round "7"]
[TimeControl "180+1"]
[Date "2023.08.08"]
[WhiteClock "0:02:08"]
[BlackClock "0:02:47"]
[Board "55"]

1. e4 {[%clk 0:03:00]}  e5 {[%clk 0:02:59]} 2. Nf3 {[%clk 0:03:00]}  Nc6 {[%clk 0:03:00]} 3. Bb5 {[%clk 0:03:00]}  f5 {[%clk 0:02:59]} 4. d4 {[%clk 0:02:59]}  fxe4 {[%clk 0:02:59]} 5. Nxe5 {[%clk 0:02:58]}  Nxe5 {[%clk 0:03:00]} 6. dxe5 {[%clk 0:02:58]}  c6 {[%clk 0:03:01]} 7. Bc4 {[%clk 0:02:57]}  Qa5+ {[%clk 0:03:00]} 8. Nc3 {[%clk 0:02:58]}  Qxe5 {[%clk 0:03:01]} 9. O-O {[%clk 0:02:58]}  d5 {[%clk 0:03:01]} 10. Bb3 {[%clk 0:02:57]}  Bd6 {[%clk 0:03:01]} 11. f4 {[%clk 0:02:57]}  Qe7 {[%clk 0:02:59]} 12. Bxd5 {[%clk 0:02:25]}  cxd5 {[%clk 0:02:58]} 13. Nxd5 {[%clk 0:02:26]}  Bc5+ {[%clk 0:02:55]} 14. Kh1 {[%clk 0:02:25]}  Qf7 {[%clk 0:02:53]} 15. Re1 {[%clk 0:02:17]}  Be6 {[%clk 0:02:51]} 16. Rxe4 {[%clk 0:02:16]}  O-O-O {[%clk 0:02:51]} 17. c4 {[%clk 0:02:08]}  Nf6 {[%clk 0:02:47]} 0-1


[Site "https://www.chess.com"]

[Event "Titled Tuesday Blitz August 08 Early 2023"]
[White "Volkov, Maksim"]
[Black "Perrine, Dalton"]
[WhiteFideId "54123070"]
[BlackFideId "2048434"]
[WhiteElo "2721"]
[BlackElo "2537"]
[Result "1-0"]
[Round "7"]
[TimeControl "180+1"]
[Date "2023.08.08"]
[WhiteClock "0:00:57"]
[BlackClock "0:00:03"]
[Board "56"]

1. d4 {[%clk 0:02:53]}  Nf6 {[%clk 0:02:58]} 2. c4 {[%clk 0:02:54]}  e6 {[%clk 0:02:58]} 3. g3 {[%clk 0:02:54]}  d5 {[%clk 0:02:59]} 4. Bg2 {[%clk 0:02:55]}  dxc4 {[%clk 0:02:59]} 5. Nf3 {[%clk 0:02:55]}  c5 {[%clk 0:02:48]} 6. O-O {[%clk 0:02:50]}  Nc6 {[%clk 0:02:49]} 7. Qa4 {[%clk 0:02:48]}  Bd7 {[%clk 0:02:47]} 8. Qxc4 {[%clk 0:02:48]}  b5 {[%clk 0:02:47]} 9. Qc3 {[%clk 0:02:39]}  b4 {[%clk 0:02:43]} 10. Qd3 {[%clk 0:02:37]}  Rc8 {[%clk 0:02:40]} 11. Nbd2 {[%clk 0:02:35]}  Be7 {[%clk 0:02:17]} 12. dxc5 {[%clk 0:02:35]}  Bxc5 {[%clk 0:02:16]} 13. Nb3 {[%clk 0:02:32]}  Bb6 {[%clk 0:02:12]} 14. Rd1 {[%clk 0:02:29]}  O-O {[%clk 0:02:08]} 15. Bg5 {[%clk 0:02:29]}  Be8 {[%clk 0:01:33]} 16. Qa6 {[%clk 0:02:20]}  Bd7 {[%clk 0:01:02]} 17. Rac1 {[%clk 0:02:06]}  Qe7 {[%clk 0:00:53]} 18. Bxf6 {[%clk 0:01:39]}  gxf6 {[%clk 0:00:54]} 19. Nfd2 {[%clk 0:01:39]}  Ne5 {[%clk 0:00:36]} 20. Ne4 {[%clk 0:01:35]}  f5 {[%clk 0:00:22]} 21. Nd6 {[%clk 0:01:19]}  Rxc1 {[%clk 0:00:18]} 22. Nxc1 {[%clk 0:01:20]}  Ng4 {[%clk 0:00:15]} 23. e3 {[%clk 0:01:18]}  Rd8 {[%clk 0:00:10]} 24. Nc4 {[%clk 0:01:06]}  Bc8 {[%clk 0:00:09]} 25. Qa4 {[%clk 0:01:07]}  Rxd1+ {[%clk 0:00:07]} 26. Qxd1 {[%clk 0:01:08]}  Bc5 {[%clk 0:00:07]} 27. Nd3 {[%clk 0:01:05]}  Nf6 {[%clk 0:00:06]} 28. Qa4 {[%clk 0:00:58]}  Kg7 {[%clk 0:00:04]} 29. Qc6 {[%clk 0:00:58]}  Bb6 {[%clk 0:00:03]} 30. Nxb6 {[%clk 0:00:57]}  axb6 {[%clk 0:00:03]} 31. Qxc8 {[%clk 0:00:57]} 1-0


[Site "https://www.chess.com"]

[Event "Titled Tuesday Blitz August 08 Early 2023"]
[White "Yanchenko, Roman"]
[Black "Mammadzada, Gunay"]
[WhiteFideId "4137329"]
[BlackFideId "13403729"]
[WhiteElo "2721"]
[BlackElo "2536"]
[Result "1-0"]
[Round "7"]
[TimeControl "180+1"]
[Date "2023.08.08"]
[WhiteClock "0:01:08"]
[BlackClock "0:00:00"]
[Board "57"]

1. d4 {[%clk 0:03:00]}  d5 {[%clk 0:02:57]} 2. Nf3 {[%clk 0:03:01]}  Nf6 {[%clk 0:02:48]} 3. Bf4 {[%clk 0:03:01]}  e6 {[%clk 0:02:45]} 4. e3 {[%clk 0:03:01]}  Bd6 {[%clk 0:02:39]} 5. Bd3 {[%clk 0:02:55]}  O-O {[%clk 0:02:36]} 6. O-O {[%clk 0:02:55]}  b6 {[%clk 0:02:33]} 7. Nbd2 {[%clk 0:02:53]}  Ba6 {[%clk 0:02:33]} 8. Bxa6 {[%clk 0:02:52]}  Nxa6 {[%clk 0:02:34]} 9. Ne5 {[%clk 0:02:52]}  h6 {[%clk 0:02:24]} 10. c4 {[%clk 0:02:48]}  c5 {[%clk 0:02:14]} 11. Qa4 {[%clk 0:02:37]}  Nb8 {[%clk 0:01:42]} 12. dxc5 {[%clk 0:02:34]}  bxc5 {[%clk 0:01:41]} 13. cxd5 {[%clk 0:02:33]}  exd5 {[%clk 0:01:32]} 14. Rfd1 {[%clk 0:02:32]}  Qe7 {[%clk 0:01:30]} 15. Nd3 {[%clk 0:02:29]}  Nbd7 {[%clk 0:01:24]} 16. Rac1 {[%clk 0:02:25]}  Nb6 {[%clk 0:01:21]} 17. Bxd6 {[%clk 0:02:11]}  Qxd6 {[%clk 0:01:21]} 18. Qa5 {[%clk 0:02:00]}  c4 {[%clk 0:00:57]} 19. Nf4 {[%clk 0:02:01]}  g5 {[%clk 0:00:56]} 20. Ne2 {[%clk 0:02:00]}  Qe5 {[%clk 0:00:33]} 21. Nd4 {[%clk 0:01:53]}  Rfc8 {[%clk 0:00:30]} 22. h3 {[%clk 0:01:48]}  g4 {[%clk 0:00:29]} 23. hxg4 {[%clk 0:01:48]}  Nxg4 {[%clk 0:00:29]} 24. N2f3 {[%clk 0:01:46]}  Qh5 {[%clk 0:00:28]} 25. b3 {[%clk 0:01:36]}  Qg6 {[%clk 0:00:24]} 26. bxc4 {[%clk 0:01:32]}  dxc4 {[%clk 0:00:24]} 27. Ne5 {[%clk 0:01:20]}  Nxe5 {[%clk 0:00:24]} 28. Qxe5 {[%clk 0:01:20]}  Kh7 {[%clk 0:00:24]} 29. Ne2 {[%clk 0:01:18]}  Re8 {[%clk 0:00:15]} 30. Qb5 {[%clk 0:01:14]}  Rg8 {[%clk 0:00:13]} 31. Nf4 {[%clk 0:01:13]}  Qe4 {[%clk 0:00:11]} 32. Rd4 {[%clk 0:01:12]}  Qe7 {[%clk 0:00:03]} 33. Qf5+ {[%clk 0:01:12]}  Kh8 {[%clk 0:00:03]} 34. Qh5 {[%clk 0:01:09]}  Qf6 {[%clk 0:00:03]} 35. Rcd1 {[%clk 0:01:08]}  Rg5 {[%clk 0:00:03]} 36. Qh3 {[%clk 0:01:08]}  Rag8 {[%clk 0:00:00]} 37. Rd6 {[%clk 0:01:08]} 1-0


[Site "https://www.chess.com"]

[Event "Titled Tuesday Blitz August 08 Early 2023"]
[White "Korchmar, Vasiliy"]
[Black "Papayan, Oleg"]
[WhiteFideId "24131750"]
[BlackFideId "4193911"]
[WhiteElo "2697"]
[BlackElo "2515"]
[Result "1-0"]
[Round "7"]
[TimeControl "180+1"]
[Date "2023.08.08"]
[WhiteClock "0:01:04"]
[BlackClock "0:00:31"]
[Board "60"]

1. e4 {[%clk 0:03:00]}  d5 {[%clk 0:02:59]} 2. exd5 {[%clk 0:03:00]}  Qxd5 {[%clk 0:03:00]} 3. Nc3 {[%clk 0:02:59]}  Qd8 {[%clk 0:03:00]} 4. d4 {[%clk 0:03:00]}  c6 {[%clk 0:03:00]} 5. Nf3 {[%clk 0:02:59]}  Bf5 {[%clk 0:03:01]} 6. Bc4 {[%clk 0:02:54]}  e6 {[%clk 0:02:59]} 7. O-O {[%clk 0:02:53]}  Nf6 {[%clk 0:02:59]} 8. Ne5 {[%clk 0:02:50]}  Nbd7 {[%clk 0:02:57]} 9. Bg5 {[%clk 0:02:48]}  Nxe5 {[%clk 0:02:55]} 10. dxe5 {[%clk 0:02:49]}  Qxd1 {[%clk 0:02:53]} 11. Raxd1 {[%clk 0:02:50]}  Nd7 {[%clk 0:02:51]} 12. Nb5 {[%clk 0:02:41]}  Rc8 {[%clk 0:02:34]} 13. Rxd7 {[%clk 0:02:40]}  f6 {[%clk 0:02:08]} 14. Rfd1 {[%clk 0:01:41]}  cxb5 {[%clk 0:01:45]} 15. Bxb5 {[%clk 0:01:40]}  Rc5 {[%clk 0:01:45]} 16. exf6 {[%clk 0:01:09]}  gxf6 {[%clk 0:01:43]} 17. Bxf6 {[%clk 0:01:06]}  Rxb5 {[%clk 0:01:10]} 18. Bxh8 {[%clk 0:01:05]}  Bxc2 {[%clk 0:00:42]} 19. R1d2 {[%clk 0:01:06]}  Bh6 {[%clk 0:00:30]} 20. Rd8+ {[%clk 0:01:05]}  Ke7 {[%clk 0:00:31]} 21. R2d7# {[%clk 0:01:04]} 1-0


[Site "https://www.chess.com"]